Cogmind - Beta 15 @@@ ROGUE MODE // 2025.08.03 @ 11:30:45 Player: 7604 Result: Destroyed by P-60 Hacker with Shock Rifle Performance ------------- Evolutions (0) 0 Regions Visited (3) 600 Robots Destroyed (58) 290 Value Destroyed (1319) 1319 Prototype IDs (23) 460 Alien Tech Used (0) 0 Bonus (300) 300 TOTAL SCORE: 2969 Bonus ------- Aligned with FarCom 300 Cogmind --------- Core Integrity 0/250 Matter 271/300 Energy 51/250 System Corruption 21% Temperature Warm (185) Movement Rolling (215) Ox9 Location -10/Exiles Parts ------- > --- POWER (1) -------- Ion Engine > --- PROPULSION (2) --- Wheel > --- UTILITY (2) ------ Huge Storage Unit Seismic Detector > --- WEAPON (2) ------- Latent Energy Streamer > --- INVENTORY (25) --- Light Ion Engine Light Ion Engine Light Nuclear Core Light Treads Wheel Improved Heat Sink Improved Terrain Scanner Seismic Detector Seismic Detector Light Armor Plating Light Armor Plating Light Armor Plating Light Armor Plating Light Armor Plating Light Armor Plating Medium Laser Spread Laser Spread Laser Spread Laser Light Assault Rifle Light Cannon Grenade Launcher EMP Trap EMP Trap Peak State ------------ > --- POWER ------------ Ion Engine > --- PROPULSION ------- Light Treads > --- UTILITY ---------- Huge Storage Unit Seismic Detector > --- WEAPON ----------- Spread Laser Latent Energy Streamer > --- INVENTORY -------- Light Ion Engine Light Ion Engine Light Nuclear Core Wheel Wheel Wheel Improved Heat Sink Improved Terrain Scanner Seismic Detector Seismic Detector Light Armor Plating Light Armor Plating Light Armor Plating Light Armor Plating Light Armor Plating Light Armor Plating Medium Laser Spread Laser Spread Laser Spread Laser Light Assault Rifle Light Cannon Grenade Launcher EMP Trap EMP Trap [Rating: 19] Favorites ----------- Power Ion Engine Engine Ion Engine Propulsion Light Treads Treads Light Treads Wheel Wheel Utility Seismic Detector Device Seismic Detector Storage Huge Storage Unit Protection Light Armor Plating Weapon Spread Laser Energy Gun Spread Laser Energy Cannon Latent Energy Streamer Ballistic Gun Assault Rifle Build | -11 -10 -10 -10 ------- Run | Yrd Mat Min Exi Slots Evolved . | . . . . Power . | . . . . Propulsion . | . . . . Utility . | . . . . Weapon . | . . . . Parts Attached 25 | 6 10 6 3 Power 2 | 1 . 1 . Engine 2 | 1 . 1 . Core . | . . . . Reactor . | . . . . Propulsion 8 | 2 3 1 2 Treads 4 | 2 1 1 . Leg . | . . . . Wheel 4 | . 2 . 2 Hover . | . . . . Flight . | . . . . Utility 7 | 1 3 3 . Device 3 | . 2 1 . Storage 2 | 1 1 . . Processor . | . . . . Hackware . | . . . . Protection 2 | . . 2 . Artifact . | . . . . Weapon 8 | 2 4 1 1 Energy Gun 5 | . 4 1 . Energy Cannon 1 | . . . 1 Ballistic Gun 2 | 2 . . . Ballistic Cannon . | . . . . Launcher . | . . . . Special Weapon . | . . . . Impact Weapon . | . . . . Slashing Weapon . | . . . . Piercing Weapon . | . . . . Special Melee Weapon . | . . . . Unidentified Prototypes . | . . . . Parts Lost 9 | . 2 4 3 Power 1 | . . 1 . Propulsion 5 | . 1 2 2 Utility . | . . . . Weapon 3 | . 1 1 1 Highest Loss Streak 2 | . 1 2 1 To Critical Strikes . | . . . . Average Backups 15 | 2 9 22 22 Power 2 | . 1 2 3 Propulsion 2 | . . 4 3 Utility 6 | 1 2 9 10 Weapon 5 | . 4 5 6 Tool/Special . | . . . . Unused Backups 13 | . . . 13 Power 3 | . . . 3 Propulsion 1 | . . . 1 Utility 6 | . . . 6 Weapon 3 | . . . 3 Tool/Special . | . . . . Average Slot Usage (%) 99 | . 99 99 97 Engine 13 | . 14 13 14 Treads 23 | . 26 20 25 Wheel 3 | . 1 7 1 Device 13 | . 13 13 14 Storage 14 | . 14 14 14 Energy Gun 18 | . 10 27 25 Ballistic Gun 8 | . 17 . . Peak Build Rating 19 | 6 12 14 19 Average Rating 10 | 5 8 11 12 On Entrance 6 | . 6 9 12 Naked Turns . | . . . . Heaviest Build 99 | 14 92 92 99 Greatest Support 40 | 40 40 40 40 Greatest Overweight (x) 9 | . 4 9 9 Average Overweight (x) 2 | . 1 2 2 Largest Inventory Capacity 25 | 8 25 25 25 Average Capacity 22 | 7 19 25 25 Most Carried 25 | 5 21 25 25 Average Carried 16 | 2 9 24 24 Final Capacity 25 | 8 25 25 25 Final Carried 25 | 5 21 25 24 Class Distribution -------------------- 100% | Mutant Dominant Class ---------------- Mutant | -10/Materials Mutant | -10/Mines Mutant | -10/Exiles Resources | -11 -10 -10 -10 ----------- Run | Yrd Mat Min Exi Matter Collected 855 | 300 401 154 . Remotely . | . . . . Salvage Created 1679 | 71 649 321 638 Parts 125 | 9 54 33 29 Haulers Intercepted 2 | . 2 . . Recyclers Shooed 2 | 1 . 1 . Parts Field Recycled . | . . . . Retrieved Matter . | . . . . Parts Self-Destructed . | . . . . Prevented . | . . . . Kills | -11 -10 -10 -10 ------- Run | Yrd Mat Min Exi Combat Hostiles Destroyed 43 | . 16 13 14 Melee 1 | . 1 . . Guns 28 | . 15 13 . AOE 11 | . . . 11 Classes Destroyed 11 | 1 7 1 2 Worker 2 | . 2 . . Builder 4 | . 2 2 . Tunneler 4 | 3 1 . . Hauler 2 | . 2 . . Recycler 1 | . 1 . . Watcher 2 | . 2 . . Swarmer 18 | . 9 9 . Grunt 15 | . 7 2 6 Brawler 1 | . . . 1 Sentry 2 | . . 2 . Hunter 7 | . . . 7 Best Kill Streak 10 | 2 6 3 10 Combat Bots Only 10 | . 6 3 10 Max Kills in Single Turn 5 | 1 2 2 5 Gunslinging 1 | . 1 1 . Exploded 5 | . . . 5 Melee 1 | . 1 . . Uniques/NPCs Destroyed . | . . . . Combat | -11 -10 -10 -10 -------- Run | Yrd Mat Min Exi Hostile Shots Fired 183 | . 101 54 28 Missed 47 | . 29 14 4 Hits 136 | . 72 40 24 Projectile 136 | . 72 40 24 Critical Strikes 2 | . 1 . 1 Damage Taken 1415 | . 661 402 352 Core 261 | . 127 91 43 Absorbed by Shields . | . . . . Core Remaining (%) 100 | 100 . . . Volleys Fired 94 | 8 57 23 6 Largest 2 | 2 2 2 1 Hottest 130 | 40 130 130 60 Shots Fired 168 | 16 100 46 6 Gun 162 | 16 100 46 . Cannon 6 | . . . 6 Launcher . | . . . . Special . | . . . . Kinetic 75 | 16 52 7 . Thermal 87 | . 48 39 . Explosive . | . . . . Electromagnetic 6 | . . . 6 Robot Hit Streak 14 | 5 14 10 6 Robot Miss Streak 10 | 1 10 9 . Penetration Max . | . . . . Secondary Targets 3 | . 2 1 . Max Gunslinging Chain 1 | . 1 1 . Shots Hit Robots 117 | 10 71 33 3 Core Hits 110 | 4 56 35 15 Critical Kills . | . . . . Critical Parts Destroyed . | . . . . Critical Strikes 1 | . . 1 . Burn 1 | . . 1 . Melee Attacks . | . . . . Impact . | . . . . Slashing . | . . . . Piercing . | . . . . Sneak Attacks . | . . . . Combat Hostiles . | . . . . Follow-up Attacks . | . . . . Damage Inflicted 3270 | 130 934 466 1740 Guns 1502 | 130 914 458 . Cannons 23 | . . . 23 Explosions 1717 | . . . 1717 Melee . | . . . . Ramming 28 | . 20 8 . Kinetic 595 | 130 404 61 . Thermal 907 | . 510 397 . Explosive . | . . . . Electromagnetic 1740 | . . . 1740 Impact . | . . . . Slashing . | . . . . Piercing . | . . . . Highest Corruption 20 | . . . 20 Average Corruption 8 | . . . 8 Corruption Purged . | . . . . Corruption Blocked . | . . . . Effects 4 | . . . 4 Message Errors 2 | . . . 2 Matter Fused 1 | . . . 1 Heat Flow Errors 1 | . . . 1 Overload Shots . | . . . . Overflow Damage 27 | . . . 27 Projectiles . | . . . . Explosions 27 | . . . 27 Melee . | . . . . Knockbacks . | . . . . Impact . | . . . . Kinetic . | . . . . Secondary . | . . . . Self-Inflicted Damage . | . . . . Shots . | . . . . Rammed 5 | . 4 1 . Targets Rammed 6 | . 5 1 . Kicked . | . . . . Crushed 1 | . 1 . . Highest Temperature 285 | . 285 189 245 Average Temperature 71 | . 80 54 95 Received Heat Transfer 255 | . 183 42 30 Effects 3 | . 3 . . Interference 3 | . 3 . . Siege Activations . | . . . . Martial Activations . | . . . . Shielding Activations . | . . . . Robots Disrupted . | . . . . Combat Hostiles . | . . . . Robots Corrupted 3 | . . . 3 Combat Hostiles 3 | . . . 3 Parts Fried 5 | . . . 5 Impact Corruptions . | . . . . Robots Melted . | . . . . Combat Hostiles . | . . . . Parts Melted . | . . . . Heat Transferred 1722 | . 953 769 . Parts Sabotaged . | . . . . Parts Stolen . | . . . . Parts Stripped . | . . . . Power Chain Reactions 1 | . . . 1 Latent Energy Used 1200 | . . . 1200 LE Corruption 18 | . . . 18 Alert | -11 -10 -10 -10 ------- Run | Yrd Mat Min Exi Maximum Alert Level 1 | . 1 . . Low Security (%) 97 | 100 95 100 . Level 1 2 | . 4 . . Level 2 . | . . . . Level 3 . | . . . . Level 4 . | . . . . Level 5 . | . . . . High Security . | . . . . Max Security . | . . . . Peak Influence 209 | 5 209 145 . Initial 75 | . . 75 . Average 51 | 1 70 27 . Influence Increases 1222 | 15 601 326 280 Destroy 0b10 Robot/C 860 | . 320 260 280 Destroy 0b10 Robot/NC 75 | 15 50 10 . Destroy Leader 108 | . 68 40 . Trap Triggered on 0b10 10 | . . 10 . Successful Hack 63 | . 57 6 . Select Force Hacks 60 | . 60 . . Destroy Structure 1 | . 1 . . Lose Combat Pursuer 45 | . 45 . . Influence Decreases 992 | 15 408 519 50 Entered New Map 118 | . . 118 . Time Decay 669 | 15 309 315 30 Lost Part 60 | . 10 30 20 Lost Ally 56 | . . 56 . Purge Threat 89 | . 89 . . Squads Dispatched 3 | . 3 . . Investigation 3 | . 3 . . Extermination . | . . . . Reinforcement . | . . . . Assault . | . . . . Garrison . | . . . . Intercept . | . . . . Searches Triggered . | . . . . Construction Impeded . | . . . . Haulers Reinforced . | . . . . Active Scanning Responses . | . . . . Cargo Convoy Interrupts . | . . . . Stealth | -11 -10 -10 -10 --------- Run | Yrd Mat Min Exi Distress Signals 2 | . 2 . . Communications Jammed . | . . . . Distress Signals . | . . . . Times Spotted 51 | . 33 13 5 Peak Tracking Total 6 | . 6 3 5 Tactical Retreats 3 | . 3 . . Traps | -11 -10 -10 -10 ------- Run | Yrd Mat Min Exi Traps Triggered 4 | . 4 . . Indirectly . | . . . . Trap Hack Attempts . | . . . . Triggered . | . . . . Disarmed . | . . . . Reprogrammed . | . . . . Reused 1 | . . 1 . Traps Extracted . | . . . . Installed 1 | . . 1 . Triggered 1 | . . 1 . Most Traps Carried 3 | . . 3 2 Machines | -11 -10 -10 -10 ---------- Run | Yrd Mat Min Exi Machines Disabled 3 | . . . 3 Max in Single Turn 1 | . . . 1 Machines Repaired . | . . . . Machines Dismantled . | . . . . Machines Sabotaged . | . . . . Overloaded Fab Kills . | . . . . Hacking | -11 -10 -10 -10 --------- Run | Yrd Mat Min Exi Machines Accessed 13 | . 11 1 1 Terminals 9 | . 8 1 . Fabricators . | . . . . Repair Stations 1 | . 1 . . Recycling Units 2 | . 2 . . Scanalyzers . | . . . . Garrison Access . | . . . . Total Hacks 37 | . 34 2 1 Successful 18 | . 16 1 1 Failed 18 | . 17 1 . Catastrophic 3 | . 3 . . Database Lockouts 1 | . 1 . . Manual 21 | . 18 2 1 Terminals 28 | . 26 2 . Fabricators . | . . . . Repair Stations 2 | . 2 . . Recycling Units 6 | . 6 . . Scanalyzers . | . . . . Garrison Access . | . . . . Terminal Hacks 6 | . 4 1 1 Part Schematic 1 | . 1 . . Robot Analysis 2 | . 1 1 . Unreport Threat 1 | . 1 . . Hauler Manifests 1 | . 1 . . Proto ID Catalog 1 | . . . 1 Fabricator Hacks . | . . . . Repair Station Hacks 1 | . 1 . . Scan Component 1 | . 1 . . Recycling Unit Hacks 2 | . 2 . . Retrieve Components 2 | . 2 . . Scanalyzer . | . . . . Garrison Access Hacks . | . . . . Unauthorized Hacks 9 | . 9 . . Terminals 7 | . 7 . . Botnet 1 | . 1 . . Operators 1 | . 1 . . Skim 5 | . 5 . . Fabricators . | . . . . Repair Stations . | . . . . Recycling Units 2 | . 2 . . Tunnel 2 | . 2 . . Scanalyzers . | . . . . Garrison Access . | . . . . Data Cores Recovered . | . . . . Used . | . . . . Hacking Detections 12 | . 11 1 . Full Trace Events . | . . . . Feedback Events . | . . . . Feedback Blocked . | . . . . Robot Schematics Acquired . | . . . . Robots Built . | . . . . Authchips . | . . . . Time . | . . . . Total Robot Build Rating . | . . . . Part Schematics Acquired 1 | . 1 . . Parts Built . | . . . . Authchips . | . . . . Time . | . . . . Total Part Build Rating . | . . . . Parts Repaired . | . . . . Time . | . . . . Parts Recycled . | . . . . Recycled Matter . | . . . . Retrieved Matter . | . . . . Retrieved Components 17 | . 17 . . Parts Scanalyzed . | . . . . Part Schematics Acquired . | . . . . Parts Damaged . | . . . . Bothacking | -11 -10 -10 -10 ------------ Run | Yrd Mat Min Exi Used RIF Installer . | . . . . Robots Hacked . | . . . . Non-combat . | . . . . Combat . | . . . . Robot Hacks Applied . | . . . . Relay Couplers Released . | . . . . Fabnet Peak Effective % . | . . . . Robots Rewired . | . . . . Allies Hacked . | . . . . Hacks Repelled . | . . . . Allies | -11 -10 -10 -10 -------- Run | Yrd Mat Min Exi Total Allies 3 | . . 3 . Largest Group 3 | . . 3 . Highest-Rated Group 40 | . . 40 . Highest-Rated Ally 16 | . . 16 . Total Orders . | . . . . Ally Attacks 6 | . . 6 . Total Damage 85 | . . 85 . Kills . | . . . . Allies Corrupted . | . . . . Allies Melted . | . . . . Intel | -11 -10 -10 -10 ------- Run | Yrd Mat Min Exi Active Infowar (turns) 5300 | . 2568 1799 933 Terrain 188 | . 188 . . Seismic 5112 | . 2380 1799 933 Robot Analysis Total 2 | . 1 1 . Derelict Logs Recovered 2 | . . 2 . Drone Launches . | . . . . Drone Recoveries . | . . . . Exploration | -11 -10 -10 -10 ------------- Run | Yrd Mat Min Exi Turns Passed 5520 | 142 2594 1851 933 Spaces Moved 1861 | 67 847 684 263 Core 4 | 4 . . . Treads 1418 | 63 729 384 242 Legs . | . . . . Wheels 439 | . 118 300 21 Hover . | . . . . Flight . | . . . . Fastest Speed 50 | 50 140 140 140 Average Speed 247 | 153 241 241 309 Slowest Speed 480 | 160 480 480 480 Overloaded Moves . | . . . . Propulsion Burnouts . | . . . . Robots Hopped . | . . . . Potential Cave-ins . | . . . . Cave-ins Triggered . | . . . . Exploration Rate (%) 59 | 5 94 95 43 Regions Visited 3 Branch Regions 2 Pre-discovered Areas 4 | . 4 . . Known Exits Taken 1 | . 1 . . Unknown Exits Taken 2 | 1 . 1 . Scrap Searched 1 | . . 1 . Spaces Dug . | . . . . Terrain Destroyed 89 | . . . 89 Melee . | . . . . Projectile . | . . . . AOE 89 | . . . 89 Terrain Rammed . | . . . . Walls Destroyed . | . . . . Machines Disabled . | . . . . Actions | -11 -10 -10 -10 --------- Run | Yrd Mat Min Exi Total 2573 | 87 1275 833 378 Wait 525 | 2 321 100 102 Move 1858 | 66 846 683 263 Hop . | . . . . Pick Up 34 | 5 19 8 2 Fast Attach 10 | 6 4 . . Attach 9 | . 3 5 1 Detach 1 | . . 1 . Swap 31 | . 19 10 2 Drop 4 | . 1 1 2 Fire 94 | 8 57 23 6 Melee . | . . . . Ram . | . . . . Kick . | . . . . Crush 6 | . 5 1 . Escape Stasis . | . . . . Rewire . | . . . . Trap 1 | . . 1 . Miscellaneous . | . . . . Route ------- -11/Scrapyard -10/Materials (discovered 6 exits: *Mat x3 / *Min x2 / Sub) -10/Mines (discovered 3 exits: *Mat / *Exi / *Sub) -10/Exiles (discovered 2 exits: Min x2) History --------- Turn | Location | Event 7 | -11/Scrapyard | Discovered new exit (range 15) 143 | -11/Scrapyard | Entered Materials 304 | -10/Materials | Build established: Mutant 698 | -10/Materials | Discovered new exit (range 7) 730 | -10/Materials | Discovered new exit (range 9) 808 | -10/Materials | Discovered new exit (range 14) 1355 | -10/Materials | Discovered new exit (range 15) 1501 | -10/Materials | Identified exit to Subcaves 1551 | -10/Materials | Identified exit to Mines 1551 | -10/Materials | Learned location of 1 exit from Materials 1560 | -10/Materials | Central database locked down 1562 | -10/Materials | Learned location of 2 exits from Materials 1564 | -10/Materials | Learned location of Storage (-8) 1565 | -10/Materials | Identified exit to Materials 1566 | -10/Materials | Learned 4 Subcaves zone layouts 1568 | -10/Materials | Learned location of 2 exits from Mines 1597 | -10/Materials | Learned location of Mines (-9) 2098 | -10/Materials | Core integrity fell below 50% 2737 | -10/Materials | Entered Mines 2804 | -10/Mines | Found a hidden stash of uninstalled traps 2963 | -10/Mines | Learned 8 Materials zone layouts 3044 | -10/Mines | Learned Materials terminal intel 3071 | -10/Mines | Core integrity fell below 20% 3142 | -10/Mines | Assisted by bots powering up and referring to "LRC-V3" 3265 | -10/Mines | Lost 3 allies 3886 | -10/Mines | Found a Scrap Suit stashed away for nefarious purposes 4576 | -10/Mines | Deemed a non-threat by the Exiles lab entrance 4576 | -10/Mines | Discovered new exit (range 5) 4588 | -10/Mines | Entered Exiles 4589 | -10/Exiles | Identified exit to Mines 4662 | -10/Exiles | Met 8R-AWN 4720 | -10/Exiles | Met EX-HEX 4806 | -10/Exiles | Met EX-BIN 4844 | -10/Exiles | Aligned with FarCom system 4848 | -10/Exiles | Given EX-Vault access code 4921 | -10/Exiles | Opened EX-Vault 4944 | -10/Exiles | Found Latent Energy Streamer 5010 | -10/Exiles | Warned to stay clear of 0b10 Research branches 5052 | -10/Exiles | Exiles lab attacked by MAIN.C 5478 | -10/Exiles | System corruption reached 10% 5499 | -10/Exiles | Destroyed 10 combat bots 5521 | -10/Exiles | Destroyed by P-60 Hacker with Shock Rifle Last Messages --------------- 05444_ Penetrated by Slug. 05444_ H-55 Commando destroyed. 05463_ Targeting Computer fried. 05463_ H-55 Commando destroyed. 05477_ Destroyed Heat Sink. 05478_ G-34 Mercenary system terminally corrupted. 05480_ SQSD% K5BRG%AIZP: /CCL 05497_ System corrupted: Matter fused (-9). 05502_ Targeting Computer fried. 05502_ H-55 Commando destroyed. 05502_ Chain reaction triggered in Corrupted Lgt. Nuclear Core. 05502_ FarCom Aligner disabled. 05512_ Wheel destroyed. 05514_ System corrupted: Heat flow error (+259). 05516_ G-34 Mercenary destroyed. 05516_ BIN's Workstation disabled. 05519_ P-60 Hacker resets P-60 Hacker, system corruption cleaned. Map ----- +----------------------------------------------------+ | ???????????# #?????????????????????????????? | | ???????????## ##?????????????????????????????? | | ???????????#X #??????????????????????????????? | | ???????????## #??????????????????????????????? | | ????????????# #??????????????????????????????? | | ????????????# #???###????????????????????????? | | ????????????# #??"""""???????????????????????? | | ????????????# ## """???????????????????????? | | ????????????# X""???????????????????????? | | ????????????# ## """???????????????????????? | | ?????######## #??"""""???????????????????????? | | ????#""""""## #???###????????????????????????? | | ????#"""" ## #??????????????????????????????? | | ????#""X" #??????????????????????????????? | | ????#" #??????????????????????????????? | | ????#" ## #??????????????????????????????? | | ????#""""""## #?#########????????????????????? | | ????##"###### #?#"""""""#????????????????????? | | ????? ??????# #?#"""""""#????????????????????? | | ????????????# #?#"""""""#????????????????????? | | ???????????## ###"" """"########?????????????? | | ???????????#" """; ##????????????? | | ???????????#" """; #????????????? | | ???????????#" """;;;;;;; #????????????? | | ???????????#" "" ;; ; #????????????? | | ???????????#" @" ;; ; #????????????? | | ???????????#" "" ;; ; #???????????? | | ???????????#; "" ; #???????????? | | ??????????# ; "" ;;;;;;; ##???????????? | | ?????????# "X" "" ; #????????????? | | ?????????## """ # """;###????????????? | | ?????????# """"""""# """##??????????????? | | ??????????# %= ;#########?""?????????????????? | | ?????????? [ ?????????????????????????????? | | ????????#"" = % ??????????????????????????????? | | ??????"" ="#?????????????????????????????? | | ?????"" [ ##???###########??????????????? | | ?????"" % [ #####"""""""""##?????????????? | | ???" " % = " """ """"##????????????? | | ? =%[ "" " #????????????? | | % =%=[= " """#????????????? | | %% " "#???????????## | | ? !%=[ " "##?????????##" | | ? [ ""###???????#" | | ? """"" %[ """#??????##" | | ? ######""" "#????### | | ?? ""#?????#####""" ##???# | | ?? """#??????????##""" ##?## | | ???????????????????#"""" ### | | ???????????????????#"" # | +----------------------------------------------------+ Best States ------------- Heat Dissipation 39 Energy Generation 10 Energy Capacity 250 Matter Stores 300 Matter Capacity 300 Sight Range 16 Terrain Scan Range 16 Terrain Scan Density 10 Armor Coverage 150 Evasion (%) 40 Recoil Reduction 2 Item Schematics ----------------- Hcp. Storage Unit | -10/Materials | Hacked Robot Schematics ------------------ None Fabricated ------------ Nothing Repaired ---------- Nothing Alien Tech Used ----------------- None Achievements -------------- None Challenges ------------ None Game ------ Seed ActuatorTitaniumBrace Manual? 0 Play Time 00:23:01 Cumulative 528.1 hours Start 2025.08.03 @ 11:07:06 End 2025.08.03 @ 11:30:45 Sessions 1 Manual Loads 0 Difficulty Rogue Special Mode None Game No. 278 Rogue 215 Adventurer 63 Explorer 0 Win Type - Total 9 Types 8/0/0/1/0/0/0/0/0/0 Lore% 90 Gallery% 82 Achievement% 67 Wizard Run 0 Options --------- Layout 2 ASCII 0 Keyboard 1 Movement Numpad Keybinds 0 Fullscreen 2 Font 24/Terminus Map View 50x44 Zoom Use 0% Tactical HUD 1 Map Filters NONE Filters NONE Steam 1 RUN: c8db6d1d-7750-46b5-823c-0275f427617d